Workbook

Sheet Inputs
B2: High-Level NEM Rate Impact Analysis
B3: Rocky Mtn Power - Utah
B5: Model Structure
C6: Sector / Rate Class | D6: Residential
C7: Base Year | D7: 2015
C8: Study Period (Years) | D8: 20
B10: System Parameters
C11: Residential Sales (MWh) | D11: 6976758 | F11: EIA 861, 2013
C12: Residential Revenues ($) | D12: 758356800 | F12: EIA 861, 2013
C13: Number of Residential Customers (count) | D13: 733917 | F13: EIA 861, 2013
C14: Sales per customer (MWh) | D14: =D11/D13 -> 9.506194842 | F14: Residential Sales / # of Customers
C15: Customer growth rate | D15: 0.01 | F15: User input
C16: Electricity usage per customer growth rate | D16: 0 | F16: User input
B17: Rate Structure Parameters
C18: Energy Rate ($/MWh) | D18: =Ref_Sheet!C18/Ref_Sheet!C72*Ref_Sheet!C71 -> 98.37075 | F18: Annual weighted average, RMP Residential rate tariff
C19: Customer ($/Month) | D19: =Ref_Sheet!C6 -> 6 | F19: RMP Residential rate tariff
C20: Minimum Bill ($/Month) | D20: =Ref_Sheet!C22 -> 8 | F20: RMP Residential rate tariff
C21: Fixed Portion of Energy Rate (%) | D21: 0.6666 | F21: RMP Presentation See: MW
B22: PV NEM System Parameters
C23: Average PV installed capacity (MW, DC) | D23: 0.005 | F23: User input
C24: Unit capacity factor (%) | D24: =Ref_Sheet!C58/(8760*Ref_Sheet!C33) -> 0.1687509657 | F24: NREL PV Watts (SLC, UT) | G24: Warning: You have entered a capacity and/or capacity factor that results in the annual generation being greater than annual consumption, which would trigger RMP's minimm bill. This version of the model doesn't account for minimum bills.
C25: Unit generation (MWh) | D25: =8760*D24*D23 -> 7.391292297 | F25: Calculation based on CF and Capacity
C26: Percent of customers adding DG PV per year | D26: 0.005 | F26: User input
C27: Number of years with additional DG PV | D27: 10 | F27: User input
B28: Levelized Avoided Cost Inputs
C29: Avoided energy ($/MWh) | D29: 60 | F29: Avoided fuel, variable O&M, and line losses.
C30: Avoided generation capacity capital costs ($/MWh) | F30: Capital cost of generation to meet peak load.
C31: Avoided transmission capital costs ($/MWh) | F31: Cost of money savings resulting from defferring T&D capacity additions.
C32: Avoided distribution capital costs ($/MWh) | F32: Cost of money savings resulting from defferring T&D capacity additions. Default from CPR 2014 (assumes zero avoided distribution)
C33: Avoided environmental Costs ($/MWh) | F33: Costs to comply with environemetnal regulations and policy objectives. Default from CPR 2014.
C34: Fuel price guarantee/avoided risk ($/MWh) | F34: Cost of eliminating uncertainty in fuel price fluctuations. Default $0.00
C36: Variable Avoided Costs ($/MWh) | D36: =SUM(D29+D33+D34) -> 60 | F36: Includes avoided energy, avoided environmental, and fuel price guarantee
C37: Fixed Avoided Costs ($/MWh) | D37: =SUM(D30:D32) -> 0 | F37: Includes avoided capital costs associated with generation and T&D capacity
C38: Total Avoided Costs ($/MWh) | D38: =SUM(D36:D37) -> 60 | F38: Sum of variable and fixed avoided costs

Sheet Rate_Impacts_With_v_Without
B1: Utah NEM Rate Impact Analysis
E2: 2015 | F2: 2016 | G2: 2017 | H2: 2018 | I2: 2019 | J2: 2020 | K2: 2021 | L2: 2022 | M2: 2023 | N2: 2024 | O2: 2025 | P2: 2026 | Q2: 2027 | R2: 2028 | S2: 2029 | T2: 2030 | U2: 2031 | V2: 2032 | W2: 2033 | X2: 2034
C3: Universal
B4: Customers x customer growth rate | D4: Customers (# of customers) | E4: =Inputs!$D$13 -> 733917 | F4: =E4*(1+Inputs!$D$15) -> 741256.17 | G4: =F4*(1+Inputs!$D$15) -> 748668.7317 | H4: =G4*(1+Inputs!$D$15) -> 756155.419 | I4: =H4*(1+Inputs!$D$15) -> 763716.9732 | J4: =I4*(1+Inputs!$D$15) -> 771354.1429 | K4: =J4*(1+Inputs!$D$15) -> 779067.6844 | L4: =K4*(1+Inputs!$D$15) -> 786858.3612 | M4: =L4*(1+Inputs!$D$15) -> 794726.9448 | N4: =M4*(1+Inputs!$D$15) -> 802674.2143 | O4: =N4*(1+Inputs!$D$15) -> 810700.9564 | P4: =O4*(1+Inputs!$D$15) -> 818807.966 | Q4: =P4*(1+Inputs!$D$15) -> 826996.0456 | R4: =Q4*(1+Inputs!$D$15) -> 835266.0061 | S4: =R4*(1+Inputs!$D$15) -> 843618.6662 | T4: =S4*(1+Inputs!$D$15) -> 852054.8528 | U4: =T4*(1+Inputs!$D$15) -> 860575.4013 | V4: =U4*(1+Inputs!$D$15) -> 869181.1554 | W4: =V4*(1+Inputs!$D$15) -> 877872.9669 | X4: =W4*(1+Inputs!$D$15) -> 886651.6966
B5: Typical annual demand x demand grwoth rate | D5: Usage per customer (annual MWh / customer) | E5: =Inputs!$D$14 -> 9.506194842 | F5: =E5*(1+Inputs!$D$16) -> 9.506194842 | G5: =F5*(1+Inputs!$D$16) -> 9.506194842 | H5: =G5*(1+Inputs!$D$16) -> 9.506194842 | I5: =H5*(1+Inputs!$D$16) -> 9.506194842 | J5: =I5*(1+Inputs!$D$16) -> 9.506194842 | K5: =J5*(1+Inputs!$D$16) -> 9.506194842 | L5: =K5*(1+Inputs!$D$16) -> 9.506194842 | M5: =L5*(1+Inputs!$D$16) -> 9.506194842 | N5: =M5*(1+Inputs!$D$16) -> 9.506194842 | O5: =N5*(1+Inputs!$D$16) -> 9.506194842 | P5: =O5*(1+Inputs!$D$16) -> 9.506194842 | Q5: =P5*(1+Inputs!$D$16) -> 9.506194842 | R5: =Q5*(1+Inputs!$D$16) -> 9.506194842 | S5: =R5*(1+Inputs!$D$16) -> 9.506194842 | T5: =S5*(1+Inputs!$D$16) -> 9.506194842 | U5: =T5*(1+Inputs!$D$16) -> 9.506194842 | V5: =U5*(1+Inputs!$D$16) -> 9.506194842 | W5: =V5*(1+Inputs!$D$16) -> 9.506194842 | X5: =W5*(1+Inputs!$D$16) -> 9.506194842
D6: Total residential electricity usage (MWh) | E6: =E5*E4 -> 6976758 | F6: =F5*F4 -> 7046525.58 | G6: =G5*G4 -> 7116990.836 | H6: 7188160.744 | I6: 7260042.352 | J6: 7332642.775 | K6: 7405969.203 | L6: 7480028.895 | M6: 7554829.184 | N6: 7630377.476 | O6: 7706681.25 | P6: 7783748.063 | Q6: 7861585.544 | R6: 7940201.399 | S6: 8019603.413 | T6: 8099799.447 | U6: 8180797.442 | V6: 8262605.416 | W6: 8345231.47 | X6: 8428683.785
B8: Scenario calculations for no DGPV case | C8: No DG PV Case
B9: Forecasted sales | C9: Annual Sales
B10: Sales = Demand - customer generation | D10: Annual residential sales (MWh) | E10: =E6 -> 6976758 | F10: =F6 -> 7046525.58 | G10: 7116990.836 | H10: 7188160.744 | I10: 7260042.352 | J10: 7332642.775 | K10: 7405969.203 | L10: 7480028.895 | M10: 7554829.184 | N10: 7630377.476 | O10: 7706681.25 | P10: 7783748.063 | Q10: 7861585.544 | R10: 7940201.399 | S10: 8019603.413 | T10: 8099799.447 | U10: 8180797.442 | V10: 8262605.416 | W10: 8345231.47 | X10: 8428683.785
C11: Rates
B12: Fuel and Purchased Power Charge | D12: Energy Rate - variable portion ($/MWh) | E12: =Inputs!$D$18*(1-Inputs!$D$21) -> 32.79680805 | F12: =Inputs!$D$18*(1-Inputs!$D$21) -> 32.79680805 | G12: =Inputs!$D$18*(1-Inputs!$D$21) -> 32.79680805 | H12: =Inputs!$D$18*(1-Inputs!$D$21) -> 32.79680805 | I12: =Inputs!$D$18*(1-Inputs!$D$21) -> 32.79680805 | J12: =Inputs!$D$18*(1-Inputs!$D$21) -> 32.79680805 | K12: =Inputs!$D$18*(1-Inputs!$D$21) -> 32.79680805 | L12: =Inputs!$D$18*(1-Inputs!$D$21) -> 32.79680805 | M12: =Inputs!$D$18*(1-Inputs!$D$21) -> 32.79680805 | N12: =Inputs!$D$18*(1-Inputs!$D$21) -> 32.79680805 | O12: =Inputs!$D$18*(1-Inputs!$D$21) -> 32.79680805 | P12: =Inputs!$D$18*(1-Inputs!$D$21) -> 32.79680805 | Q12: =Inputs!$D$18*(1-Inputs!$D$21) -> 32.79680805 | R12: =Inputs!$D$18*(1-Inputs!$D$21) -> 32.79680805 | S12: =Inputs!$D$18*(1-Inputs!$D$21) -> 32.79680805 | T12: =Inputs!$D$18*(1-Inputs!$D$21) -> 32.79680805 | U12: =Inputs!$D$18*(1-Inputs!$D$21) -> 32.79680805 | V12: =Inputs!$D$18*(1-Inputs!$D$21) -> 32.79680805 | W12: =Inputs!$D$18*(1-Inputs!$D$21) -> 32.79680805 | X12: =Inputs!$D$18*(1-Inputs!$D$21) -> 32.79680805
B13: Energy rate times fixed portion | D13: Energy Rate - fixed portion ($/MWh) | E13: =Inputs!$D$18*(Inputs!$D$21) -> 65.57394195 | F13: =Inputs!$D$18*(Inputs!$D$21) -> 65.57394195 | G13: =Inputs!$D$18*(Inputs!$D$21) -> 65.57394195 | H13: =Inputs!$D$18*(Inputs!$D$21) -> 65.57394195 | I13: =Inputs!$D$18*(Inputs!$D$21) -> 65.57394195 | J13: =Inputs!$D$18*(Inputs!$D$21) -> 65.57394195 | K13: =Inputs!$D$18*(Inputs!$D$21) -> 65.57394195 | L13: =Inputs!$D$18*(Inputs!$D$21) -> 65.57394195 | M13: =Inputs!$D$18*(Inputs!$D$21) -> 65.57394195 | N13: =Inputs!$D$18*(Inputs!$D$21) -> 65.57394195 | O13: =Inputs!$D$18*(Inputs!$D$21) -> 65.57394195 | P13: =Inputs!$D$18*(Inputs!$D$21) -> 65.57394195 | Q13: =Inputs!$D$18*(Inputs!$D$21) -> 65.57394195 | R13: =Inputs!$D$18*(Inputs!$D$21) -> 65.57394195 | S13: =Inputs!$D$18*(Inputs!$D$21) -> 65.57394195 | T13: =Inputs!$D$18*(Inputs!$D$21) -> 65.57394195 | U13: =Inputs!$D$18*(Inputs!$D$21) -> 65.57394195 | V13: =Inputs!$D$18*(Inputs!$D$21) -> 65.57394195 | W13: =Inputs!$D$18*(Inputs!$D$21) -> 65.57394195 | X13: =Inputs!$D$18*(Inputs!$D$21) -> 65.57394195
B14: Sum of above | D14: Total Energy Rate ($/MWh) | E14: =E12+E13 -> 98.37075 | F14: =F12+F13 -> 98.37075 | G14: 98.37075 | H14: 98.37075 | I14: 98.37075 | J14: 98.37075 | K14: 98.37075 | L14: 98.37075 | M14: 98.37075 | N14: 98.37075 | O14: 98.37075 | P14: 98.37075 | Q14: 98.37075 | R14: 98.37075 | S14: 98.37075 | T14: 98.37075 | U14: 98.37075 | V14: 98.37075 | W14: 98.37075 | X14: 98.37075
B15: Customer charge | D15: Customer ($/Month) | E15: =Ref_Sheet!$C$6 -> 6 | F15: =Ref_Sheet!$C$6 -> 6 | G15: =Ref_Sheet!$C$6 -> 6 | H15: =Ref_Sheet!$C$6 -> 6 | I15: =Ref_Sheet!$C$6 -> 6 | J15: =Ref_Sheet!$C$6 -> 6 | K15: =Ref_Sheet!$C$6 -> 6 | L15: =Ref_Sheet!$C$6 -> 6 | M15: =Ref_Sheet!$C$6 -> 6 | N15: =Ref_Sheet!$C$6 -> 6 | O15: =Ref_Sheet!$C$6 -> 6 | P15: =Ref_Sheet!$C$6 -> 6 | Q15: =Ref_Sheet!$C$6 -> 6 | R15: =Ref_Sheet!$C$6 -> 6 | S15: =Ref_Sheet!$C$6 -> 6 | T15: =Ref_Sheet!$C$6 -> 6 | U15: =Ref_Sheet!$C$6 -> 6 | V15: =Ref_Sheet!$C$6 -> 6 | W15: =Ref_Sheet!$C$6 -> 6 | X15: =Ref_Sheet!$C$6 -> 6
B16: Minimum bill | D16: Minimum bill ($) | E16: =Ref_Sheet!$C$22 -> 8 | F16: =Ref_Sheet!$C$22 -> 8 | G16: =Ref_Sheet!$C$22 -> 8 | H16: =Ref_Sheet!$C$22 -> 8 | I16: =Ref_Sheet!$C$22 -> 8 | J16: =Ref_Sheet!$C$22 -> 8 | K16: =Ref_Sheet!$C$22 -> 8 | L16: =Ref_Sheet!$C$22 -> 8 | M16: =Ref_Sheet!$C$22 -> 8 | N16: =Ref_Sheet!$C$22 -> 8 | O16: =Ref_Sheet!$C$22 -> 8 | P16: =Ref_Sheet!$C$22 -> 8 | Q16: =Ref_Sheet!$C$22 -> 8 | R16: =Ref_Sheet!$C$22 -> 8 | S16: =Ref_Sheet!$C$22 -> 8 | T16: =Ref_Sheet!$C$22 -> 8 | U16: =Ref_Sheet!$C$22 -> 8 | V16: =Ref_Sheet!$C$22 -> 8 | W16: =Ref_Sheet!$C$22 -> 8 | X16: =Ref_Sheet!$C$22 -> 8
B17: Forecasted Revnues | C17: Annual Revenues and Costs
B18: Energy sales x energy rate x var % | D18: Variable Revenues and Costs | E18: =(E12)*E10 -> 228815392.9 | F18: 231103546.9 | G18: 233414582.3 | H18: 235748728.2 | I18: 238106215.4 | J18: 240487277.6 | K18: 242892150.4 | L18: 245321071.9 | M18: 247774282.6 | N18: 250252025.4 | O18: 252754545.7 | P18: 255282091.1 | Q18: 257834912 | R18: =(R12)*R10 -> 260413261.2 | S18: 263017393.8 | T18: 265647567.7 | U18: 268304043.4 | V18: 270987083.8 | W18: 273696954.7 | X18: 276433924.2
B19: Energy sales x energy rate x fixed % | D19: Fixed Revenues and Costs | E19: =(E13)*E10 -> 457493524.1 | F19: 462068459.3 | G19: 466689143.9 | H19: 471356035.4 | I19: 476069595.7 | J19: 480830291.7 | K19: 485638594.6 | L19: 490494980.5 | M19: 495399930.3 | N19: 500353929.6 | O19: 505357468.9 | P19: 510411043.6 | Q19: 515515154.1 | R19: =(R13)*R10 -> 520670305.6 | S19: 525877008.7 | T19: 531135778.8 | U19: 536447136.5 | V19: 541811607.9 | W19: 547229724 | X19: 552702021.2
B20: Sum of fixed and variable | D20: Total Energy Rate Revenues and Costs | E20: =E18+E19 -> 686308917 | F20: =F18+F19 -> 693172006.2 | G20: =G18+G19 -> 700103726.3 | H20: 707104763.5 | I20: 714175811.2 | J20: 721317569.3 | K20: 728530745 | L20: 735816052.4 | M20: 743174212.9 | N20: 750605955.1 | O20: 758112014.6 | P20: 765693134.8 | Q20: 773350066.1 | R20: =R18+R19 -> 781083566.8 | S20: 788894402.4 | T20: 796783346.5 | U20: 804751179.9 | V20: 812798691.7 | W20: 820926678.6 | X20: 829135945.4
B21: Customers x customer charge | D21: Customer Charge Revenues and Costs | E21: =E15*E4*12 -> 52842024 | F21: =F15*F4*12 -> 53370444.24 | G21: 53904148.68 | H21: 54443190.17 | I21: 54987622.07 | J21: 55537498.29 | K21: 56092873.27 | L21: 56653802.01 | M21: 57220340.03 | N21: 57792543.43 | O21: 58370468.86 | P21: 58954173.55 | Q21: 59543715.29 | R21: =R15*R4*12 -> 60139152.44 | S21: 60740543.96 | T21: 61347949.4 | U21: 61961428.9 | V21: 62581043.19 | W21: 63206853.62 | X21: 63838922.15
B22: Sum of Energy Rate and Customer Charge | D22: Total Revenues and Costs | E22: =E20+E21 -> 739150941 | F22: =F20+F21 -> 746542450.4 | G22: 754007874.9 | H22: 761547953.7 | I22: 769163433.2 | J22: 776855067.6 | K22: 784623618.2 | L22: 792469854.4 | M22: 800394553 | N22: 808398498.5 | O22: 816482483.5 | P22: 824647308.3 | Q22: 832893781.4 | R22: =R20+R21 -> 841222719.2 | S22: 849634946.4 | T22: 858131295.9 | U22: 866712608.8 | V22: 875379734.9 | W22: 884133532.3 | X22: 892974867.6
D23: Percent of total costs that are "fixed" | E23: =(E19+E21)/E22 -> 0.6904348216 | F23: =(F19+F21)/F22 -> 0.6904348216 | G23: =(G19+G21)/G22 -> 0.6904348216 | H23: =(H19+H21)/H22 -> 0.6904348216 | I23: =(I19+I21)/I22 -> 0.6904348216 | J23: =(J19+J21)/J22 -> 0.6904348216 | K23: =(K19+K21)/K22 -> 0.6904348216 | L23: =(L19+L21)/L22 -> 0.6904348216 | M23: =(M19+M21)/M22 -> 0.6904348216 | N23: =(N19+N21)/N22 -> 0.6904348216 | O23: =(O19+O21)/O22 -> 0.6904348216 | P23: =(P19+P21)/P22 -> 0.6904348216 | Q23: =(Q19+Q21)/Q22 -> 0.6904348216 | R23: =(R19+R21)/R22 -> 0.6904348216 | S23: =(S19+S21)/S22 -> 0.6904348216 | T23: =(T19+T21)/T22 -> 0.6904348216 | U23: =(U19+U21)/U22 -> 0.6904348216 | V23: =(V19+V21)/V22 -> 0.6904348216 | W23: =(W19+W21)/W22 -> 0.6904348216 | X23: =(X19+X21)/X22 -> 0.6904348216
C25: With DG PV
B26: Forecasted sales | C26: Annual Sales
B27: % of customers with PV + grwoth rate | D27: Customers with PV (%) | E27: =Inputs!D26 -> 0.005 | F27: =MIN(E27+Inputs!$D$26,Inputs!$D$26*Inputs!$D$27) -> 0.01 | G27: =MIN(F27+Inputs!$D$26,Inputs!$D$26*Inputs!$D$27) -> 0.015 | H27: =MIN(G27+Inputs!$D$26,Inputs!$D$26*Inputs!$D$27) -> 0.02 | I27: =MIN(H27+Inputs!$D$26,Inputs!$D$26*Inputs!$D$27) -> 0.025 | J27: =MIN(I27+Inputs!$D$26,Inputs!$D$26*Inputs!$D$27) -> 0.03 | K27: =MIN(J27+Inputs!$D$26,Inputs!$D$26*Inputs!$D$27) -> 0.035 | L27: =MIN(K27+Inputs!$D$26,Inputs!$D$26*Inputs!$D$27) -> 0.04 | M27: =MIN(L27+Inputs!$D$26,Inputs!$D$26*Inputs!$D$27) -> 0.045 | N27: =MIN(M27+Inputs!$D$26,Inputs!$D$26*Inputs!$D$27) -> 0.05 | O27: =MIN(N27+Inputs!$D$26,Inputs!$D$26*Inputs!$D$27) -> 0.05 | P27: =MIN(O27+Inputs!$D$26,Inputs!$D$26*Inputs!$D$27) -> 0.05 | Q27: =MIN(P27+Inputs!$D$26,Inputs!$D$26*Inputs!$D$27) -> 0.05 | R27: =MIN(Q27+Inputs!$D$26,Inputs!$D$26*Inputs!$D$27) -> 0.05 | S27: =MIN(R27+Inputs!$D$26,Inputs!$D$26*Inputs!$D$27) -> 0.05 | T27: =MIN(S27+Inputs!$D$26,Inputs!$D$26*Inputs!$D$27) -> 0.05 | U27: =MIN(T27+Inputs!$D$26,Inputs!$D$26*Inputs!$D$27) -> 0.05 | V27: =MIN(U27+Inputs!$D$26,Inputs!$D$26*Inputs!$D$27) -> 0.05 | W27: =MIN(V27+Inputs!$D$26,Inputs!$D$26*Inputs!$D$27) -> 0.05 | X27: =MIN(W27+Inputs!$D$26,Inputs!$D$26*Inputs!$D$27) -> 0.05
B28: Customers x % with DGPV * typical DGPV gen | D28: Annual Customer PV Gen (MWh) | E28: =E4*E27*Inputs!$D$25 -> 27122.97535 | F28: =F4*F27*Inputs!$D$25 -> 54788.4102 | G28: =G4*G27*Inputs!$D$25 -> 83004.44145 | H28: =H4*H27*Inputs!$D$25 -> 111779.3145 | I28: =I4*I27*Inputs!$D$25 -> 141121.3845 | J28: =J4*J27*Inputs!$D$25 -> 171039.1181 | K28: =K4*K27*Inputs!$D$25 -> 201541.0941 | L28: =L4*L27*Inputs!$D$25 -> 232636.0058 | M28: =M4*M27*Inputs!$D$25 -> 264332.6616 | N28: =N4*N27*Inputs!$D$25 -> 296639.9869 | O28: =O4*O27*Inputs!$D$25 -> 299606.3867 | P28: =P4*P27*Inputs!$D$25 -> 302602.4506 | Q28: =Q4*Q27*Inputs!$D$25 -> 305628.4751 | R28: =R4*R27*Inputs!$D$25 -> 308684.7599 | S28: =S4*S27*Inputs!$D$25 -> 311771.6075 | T28: =T4*T27*Inputs!$D$25 -> 314889.3235 | U28: =U4*U27*Inputs!$D$25 -> 318038.2168 | V28: =V4*V27*Inputs!$D$25 -> 321218.5989 | W28: =W4*W27*Inputs!$D$25 -> 324430.7849 | X28: =X4*X27*Inputs!$D$25 -> 327675.0928
B29: Net Sales = Demand - customer generation | D29: Net annual residential sales [after PV] (MWh) | E29: =E6-E28 -> 6949635.025 | F29: 6991737.17 | G29: 7033986.394 | H29: 7076381.43 | I29: 7118920.967 | J29: 7161603.657 | K29: 7204428.109 | L29: 7247392.889 | M29: 7290496.522 | N29: 7333737.489 | O29: 7407074.864 | P29: 7481145.612 | Q29: 7555957.068 | R29: 7631516.639 | S29: 7707831.806 | T29: 7784910.124 | U29: 7862759.225 | V29: 7941386.817 | W29: 8020800.685 | X29: 8101008.692
D30: Installed DG PV (MW) | E30: =E27*E4*Inputs!$D$23 -> 18.347925 | F30: =F27*F4*Inputs!$D$23 -> 37.0628085 | G30: =G27*G4*Inputs!$D$23 -> 56.15015488 | H30: =H27*H4*Inputs!$D$23 -> 75.6155419 | I30: =I27*I4*Inputs!$D$23 -> 95.46462165 | J30: =J27*J4*Inputs!$D$23 -> 115.7031214 | K30: =K27*K4*Inputs!$D$23 -> 136.3368448 | L30: =L27*L4*Inputs!$D$23 -> 157.3716722 | M30: =M27*M4*Inputs!$D$23 -> 178.8135626 | N30: =N27*N4*Inputs!$D$23 -> 200.6685536 | O30: =O27*O4*Inputs!$D$23 -> 202.6752391 | P30: =P27*P4*Inputs!$D$23 -> 204.7019915 | Q30: =Q27*Q4*Inputs!$D$23 -> 206.7490114 | R30: =R27*R4*Inputs!$D$23 -> 208.8165015 | S30: =S27*S4*Inputs!$D$23 -> 210.9046665 | T30: =T27*T4*Inputs!$D$23 -> 213.0137132 | U30: =U27*U4*Inputs!$D$23 -> 215.1438503 | V30: =V27*V4*Inputs!$D$23 -> 217.2952888 | W30: =W27*W4*Inputs!$D$23 -> 219.4682417 | X30: =X27*X4*Inputs!$D$23 -> 221.6629241
C31: Rates
B32: New variable costs / net sales | D32: Energy Rate - variable portion ($/MWh) | E32: =E40/E29 -> 32.69063967 | F32: =F40/F29 -> 32.58363933 | G32: 32.47579723 | H32: 32.36710338 | I32: 32.25754766 | J32: 32.14711977 | K32: 32.03580926 | L32: 31.9236055 | M32: 31.81049771 | N32: 31.6964749 | O32: 31.6964749 | P32: 31.6964749 | Q32: 31.6964749 | R32: 31.6964749 | S32: 31.6964749 | T32: 31.6964749 | U32: 31.6964749 | V32: 31.6964749 | W32: 31.6964749 | X32: 31.6964749
B33: New fixed costs / net sales | D33: Energy Rate - fixed portion ($/MWh) | E33: =E41/E29 -> 65.82986336 | F33: 66.08779022 | G33: 66.34774618 | H33: 66.60975529 | I33: 66.87384197 | J33: 67.14003102 | K33: 67.40834765 | L33: 67.67881748 | M33: 67.95146652 | N33: 68.22632122 | O33: 68.22632122 | P33: 68.22632122 | Q33: 68.22632122 | R33: 68.22632122 | S33: 68.22632122 | T33: 68.22632122 | U33: 68.22632122 | V33: 68.22632122 | W33: 68.22632122 | X33: 68.22632122
B34: Sum of above | D34: Total Energy Rate ($/kWh) | E34: =E33+E32 -> 98.52050303 | F34: =F33+F32 -> 98.67142955 | G34: 98.82354341 | H34: 98.97685867 | I34: 99.13138962 | J34: 99.28715079 | K34: 99.44415691 | L34: 99.60242298 | M34: 99.76196423 | N34: 99.92279611 | O34: 99.92279611 | P34: 99.92279611 | Q34: 99.92279611 | R34: 99.92279611 | S34: 99.92279611 | T34: 99.92279611 | U34: 99.92279611 | V34: 99.92279611 | W34: 99.92279611 | X34: 99.92279611
B35: Same as No DG PV | D35: Customer ($/Month) | E35: =Inputs!$D$19 -> 6 | F35: =Inputs!$D$19 -> 6 | G35: =Inputs!$D$19 -> 6 | H35: =Inputs!$D$19 -> 6 | I35: =Inputs!$D$19 -> 6 | J35: =Inputs!$D$19 -> 6 | K35: =Inputs!$D$19 -> 6 | L35: =Inputs!$D$19 -> 6 | M35: =Inputs!$D$19 -> 6 | N35: =Inputs!$D$19 -> 6 | O35: =Inputs!$D$19 -> 6 | P35: =Inputs!$D$19 -> 6 | Q35: =Inputs!$D$19 -> 6 | R35: =Inputs!$D$19 -> 6 | S35: =Inputs!$D$19 -> 6 | T35: =Inputs!$D$19 -> 6 | U35: =Inputs!$D$19 -> 6 | V35: =Inputs!$D$19 -> 6 | W35: =Inputs!$D$19 -> 6 | X35: =Inputs!$D$19 -> 6
B36: Same as No DG PV | D36: Minimum bill ($) | E36: =Inputs!$D$20 -> 8 | F36: =Inputs!$D$20 -> 8 | G36: =Inputs!$D$20 -> 8 | H36: =Inputs!$D$20 -> 8 | I36: =Inputs!$D$20 -> 8 | J36: =Inputs!$D$20 -> 8 | K36: =Inputs!$D$20 -> 8 | L36: =Inputs!$D$20 -> 8 | M36: =Inputs!$D$20 -> 8 | N36: =Inputs!$D$20 -> 8 | O36: =Inputs!$D$20 -> 8 | P36: =Inputs!$D$20 -> 8 | Q36: =Inputs!$D$20 -> 8 | R36: =Inputs!$D$20 -> 8 | S36: =Inputs!$D$20 -> 8 | T36: =Inputs!$D$20 -> 8 | U36: =Inputs!$D$20 -> 8 | V36: =Inputs!$D$20 -> 8 | W36: =Inputs!$D$20 -> 8 | X36: =Inputs!$D$20 -> 8
B37: Forecasted Revnues / Costs | C37: Annual Revenues and Costs
B38: Costs avoided | D38: Avoided costs - variable | E38: =(Inputs!$D$36)*E$28 -> 1627378.521 | F38: =(Inputs!$D$36)*F$28 -> 3287304.612 | G38: =(Inputs!$D$36)*G$28 -> 4980266.487 | H38: =(Inputs!$D$36)*H$28 -> 6706758.869 | I38: =(Inputs!$D$36)*I$28 -> 8467283.072 | J38: =(Inputs!$D$36)*J$28 -> 10262347.08 | K38: =(Inputs!$D$36)*K$28 -> 12092465.65 | L38: =(Inputs!$D$36)*L$28 -> 13958160.35 | M38: =(Inputs!$D$36)*M$28 -> 15859959.69 | N38: =(Inputs!$D$36)*N$28 -> 17798399.21 | O38: =(Inputs!$D$36)*O$28 -> 17976383.2 | P38: =(Inputs!$D$36)*P$28 -> 18156147.04 | Q38: =(Inputs!$D$36)*Q$28 -> 18337708.51 | R38: =(Inputs!$D$36)*R$28 -> 18521085.59 | S38: =(Inputs!$D$36)*S$28 -> 18706296.45 | T38: =(Inputs!$D$36)*T$28 -> 18893359.41 | U38: =(Inputs!$D$36)*U$28 -> 19082293.01 | V38: =(Inputs!$D$36)*V$28 -> 19273115.94 | W38: =(Inputs!$D$36)*W$28 -> 19465847.1 | X38: =(Inputs!$D$36)*X$28 -> 19660505.57
B39: Costs avoided | D39: Avoided costs - fixed | E39: =(Inputs!$D$37)*E$28 -> 0 | F39: =(Inputs!$D$37)*F$28 -> 0 | G39: =(Inputs!$D$37)*G$28 -> 0 | H39: =(Inputs!$D$37)*H$28 -> 0 | I39: =(Inputs!$D$37)*I$28 -> 0 | J39: =(Inputs!$D$37)*J$28 -> 0 | K39: =(Inputs!$D$37)*K$28 -> 0 | L39: =(Inputs!$D$37)*L$28 -> 0 | M39: =(Inputs!$D$37)*M$28 -> 0 | N39: =(Inputs!$D$37)*N$28 -> 0 | O39: =(Inputs!$D$37)*O$28 -> 0 | P39: =(Inputs!$D$37)*P$28 -> 0 | Q39: =(Inputs!$D$37)*Q$28 -> 0 | R39: =(Inputs!$D$37)*R$28 -> 0 | S39: =(Inputs!$D$37)*S$28 -> 0 | T39: =(Inputs!$D$37)*T$28 -> 0 | U39: =(Inputs!$D$37)*U$28 -> 0 | V39: =(Inputs!$D$37)*V$28 -> 0 | W39: =(Inputs!$D$37)*W$28 -> 0 | X39: =(Inputs!$D$37)*X$28 -> 0
B40: No DG PV less avoided fixed costs | D40: Variable Revenues and Costs | E40: =E18-E38 -> 227188014.4 | F40: 227816242.3 | G40: 228434315.8 | H40: 229041969.3 | I40: 229638932.4 | J40: 230224930.5 | K40: 230799684.7 | L40: 231362911.5 | M40: 231914322.9 | N40: 232453626.2 | O40: 234778162.5 | P40: 237125944.1 | Q40: 239497203.5 | R40: 241892175.6 | S40: 244311097.3 | T40: 246754208.3 | U40: 249221750.4 | V40: 251713967.9 | W40: 254231107.6 | X40: 256773418.6
B41: No DG PV less avoided fixed costs | D41: Fixed Revenues and Costs | E41: =E19-E39 -> 457493524.1 | F41: 462068459.3 | G41: 466689143.9 | H41: 471356035.4 | I41: 476069595.7 | J41: 480830291.7 | K41: 485638594.6 | L41: 490494980.5 | M41: 495399930.3 | N41: 500353929.6 | O41: 505357468.9 | P41: 510411043.6 | Q41: 515515154.1 | R41: 520670305.6 | S41: 525877008.7 | T41: 531135778.8 | U41: 536447136.5 | V41: 541811607.9 | W41: 547229724 | X41: 552702021.2
B42: Sum of fixed and variable | D42: Total Energy Rate Revenues and Costs | E42: =E40+E41 -> 684681538.5 | F42: =F40+F41 -> 689884701.6 | G42: 695123459.8 | H42: 700398004.7 | I42: 705708528.1 | J42: 711055222.2 | K42: 716438279.3 | L42: 721857892.1 | M42: 727314253.2 | N42: 732807555.9 | O42: 740135631.4 | P42: 747536987.7 | Q42: 755012357.6 | R42: 762562481.2 | S42: 770188106 | T42: 777889987.1 | U42: 785668886.9 | V42: 793525575.8 | W42: 801460831.5 | X42: 809475439.9
B43: Same as No DG PV | D43: Customer Charge Revenues and Costs | E43: =E21 -> 52842024 | F43: 53370444.24 | G43: 53904148.68 | H43: 54443190.17 | I43: 54987622.07 | J43: 55537498.29 | K43: 56092873.27 | L43: 56653802.01 | M43: 57220340.03 | N43: 57792543.43 | O43: 58370468.86 | P43: 58954173.55 | Q43: 59543715.29 | R43: 60139152.44 | S43: 60740543.96 | T43: 61347949.4 | U43: 61961428.9 | V43: 62581043.19 | W43: 63206853.62 | X43: 63838922.15
B44: Sum of Energy Rate and Customer Charge | D44: Total Revenues and Costs | E44: =E42+E43 -> 737523562.5 | F44: =F42+F43 -> 743255145.8 | G44: 749027608.5 | H44: 754841194.8 | I44: 760696150.2 | J44: 766592720.5 | K44: 772531152.6 | L44: 778511694.1 | M44: 784534593.3 | N44: 790600099.3 | O44: 798506100.3 | P44: 806491161.3 | Q44: 814556072.9 | R44: 822701633.6 | S44: 830928650 | T44: 839237936.5 | U44: 847630315.8 | V44: 856106619 | W44: 864667685.2 | X44: 873314362
D45: Percent of total costs that are "fixed" | E45: =(E41+E43)/E44 -> 0.6919582967 | F45: =(F41+F43)/F44 -> 0.6934885099 | G45: 0.695025506 | H45: 0.6965693303 | I45: 0.6981200282 | J45: 0.6996776458 | K45: 0.7012422296 | L45: 0.7028138263 | M45: 0.7043924833 | N45: 0.7059782481 | O45: 0.7059782481 | P45: 0.7059782481 | Q45: 0.7059782481 | R45: 0.7059782481 | S45: 0.7059782481 | T45: 0.7059782481 | U45: 0.7059782481 | V45: 0.7059782481 | W45: 0.7059782481 | X45: 0.7059782481
C47: Differences
C48: Rates
D49: Change in Energy Rate - variable portion ($/MWh) | E49: =E32-E12 -> -0.1061683818 | F49: -0.2131687166 | G49: -0.3210108219 | H49: -0.4297046701 | I49: -0.5392603921 | J49: -0.6496882796 | K49: -0.7609987894 | L49: -0.8732025456 | M49: -0.9863103438 | N49: -1.100333154 | O49: -1.100333154 | P49: -1.100333154 | Q49: -1.100333154 | R49: -1.100333154 | S49: -1.100333154 | T49: -1.100333154 | U49: -1.100333154 | V49: -1.100333154 | W49: -1.100333154 | X49: -1.100333154
D50: Change in Energy Rate - fixed portion ($/MWh) | E50: =E33-E13 -> 0.2559214123 | F50: 0.5138482673 | G50: 0.7738042299 | H50: 1.035813339 | I50: 1.299900016 | J50: 1.566089068 | K50: 1.834405702 | L50: 2.104875529 | M50: 2.377524569 | N50: 2.652379269 | O50: 2.652379269 | P50: 2.652379269 | Q50: 2.652379269 | R50: 2.652379269 | S50: 2.652379269 | T50: 2.652379269 | U50: 2.652379269 | V50: 2.652379269 | W50: 2.652379269 | X50: 2.652379269
D51: Change in Total Energy Rate ($/MWh) | E51: =E34-E14 -> 0.1497530306 | F51: 0.3006795507 | G51: 0.4527934081 | H51: 0.6061086692 | I51: 0.7606396237 | J51: 0.9164007886 | K51: 1.073406913 | L51: 1.231672983 | M51: 1.391214226 | N51: 1.552046115 | O51: 1.552046115 | P51: 1.552046115 | Q51: 1.552046115 | R51: 1.552046115 | S51: 1.552046115 | T51: 1.552046115 | U51: 1.552046115 | V51: 1.552046115 | W51: 1.552046115 | X51: 1.552046115 | Y51: `
D52: Change in Customer ($/Month) | E52: =E35-E15 -> 0 | F52: 0 | G52: 0 | H52: 0 | I52: 0 | J52: 0 | K52: 0 | L52: 0 | M52: 0 | N52: 0 | O52: 0 | P52: 0 | Q52: 0 | R52: 0 | S52: 0 | T52: 0 | U52: 0 | V52: 0 | W52: 0 | X52: 0
D53: Change in Minimum bill ($) | E53: =E36-E16 -> 0 | F53: 0 | G53: 0 | H53: 0 | I53: 0 | J53: 0 | K53: 0 | L53: 0 | M53: 0 | N53: 0 | O53: 0 | P53: 0 | Q53: 0 | R53: 0 | S53: 0 | T53: 0 | U53: 0 | V53: 0 | W53: 0 | X53: 0
D55: Change in Energy Rate - variable portion (%) | E55: =E32/E12-1 -> -0.003237155934 | F55: -0.006499678757 | G55: -0.009787867812 | H55: -0.01310202717 | I55: -0.01644246572 | J55: -0.01980949727 | K55: -0.02320344066 | L55: -0.02662461982 | M55: -0.03007336392 | N55: -0.03355000744 | O55: -0.03355000744 | P55: -0.03355000744 | Q55: -0.03355000744 | R55: -0.03355000744 | S55: -0.03355000744 | T55: -0.03355000744 | U55: -0.03355000744 | V55: -0.03355000744 | W55: -0.03355000744 | X55: -0.03355000744
D56: Change in Energy Rate - fixed portion (%) | E56: =E33/E13-1 -> 0.003902791333 | F56: 0.007836165586 | G56: 0.01180048365 | H56: 0.01579611212 | I56: 0.01982342341 | J56: 0.02388279584 | K56: 0.02797461382 | L56: 0.03209926788 | M56: 0.03625715488 | N56: 0.04044867809 | O56: 0.04044867809 | P56: 0.04044867809 | Q56: 0.04044867809 | R56: 0.04044867809 | S56: 0.04044867809 | T56: 0.04044867809 | U56: 0.04044867809 | V56: 0.04044867809 | W56: 0.04044867809 | X56: 0.04044867809
D57: Change in Total Energy Rate (%) | E57: =E34/E14-1 -> 0.001522332915 | F57: 0.003056595082 | G57: 0.004602927273 | H57: 0.006161472483 | I57: 0.007732375973 | J57: 0.009315785319 | K57: 0.01091185045 | L57: 0.01252072372 | M57: 0.01414255991 | N57: 0.01577751633 | O57: 0.01577751633 | P57: 0.01577751633 | Q57: 0.01577751633 | R57: 0.01577751633 | S57: 0.01577751633 | T57: 0.01577751633 | U57: 0.01577751633 | V57: 0.01577751633 | W57: 0.01577751633 | X57: 0.01577751633
B59: Avoided Costs | D59: Energy Rate impact due to AC (¢/kWh) | E59: =(E42/E10-E14)*(Ref_Sheet!$C$72/Ref_Sheet!$C$71) -> -0.02332571261 | F59: =(F42/F10-F14)*(Ref_Sheet!$C$72/Ref_Sheet!$C$71) -> -0.04665142522 | G59: =(G42/G10-G14)*(Ref_Sheet!$C$72/Ref_Sheet!$C$71) -> -0.06997713784 | H59: =(H42/H10-H14)*(Ref_Sheet!$C$72/Ref_Sheet!$C$71) -> -0.09330285045 | I59: =(I42/I10-I14)*(Ref_Sheet!$C$72/Ref_Sheet!$C$71) -> -0.1166285631 | J59: =(J42/J10-J14)*(Ref_Sheet!$C$72/Ref_Sheet!$C$71) -> -0.1399542757 | K59: =(K42/K10-K14)*(Ref_Sheet!$C$72/Ref_Sheet!$C$71) -> -0.1632799883 | L59: =(L42/L10-L14)*(Ref_Sheet!$C$72/Ref_Sheet!$C$71) -> -0.1866057009 | M59: =(M42/M10-M14)*(Ref_Sheet!$C$72/Ref_Sheet!$C$71) -> -0.2099314135 | N59: =(N42/N10-N14)*(Ref_Sheet!$C$72/Ref_Sheet!$C$71) -> -0.2332571261 | O59: =(O42/O10-O14)*(Ref_Sheet!$C$72/Ref_Sheet!$C$71) -> -0.2332571261 | P59: =(P42/P10-P14)*(Ref_Sheet!$C$72/Ref_Sheet!$C$71) -> -0.2332571261 | Q59: =(Q42/Q10-Q14)*(Ref_Sheet!$C$72/Ref_Sheet!$C$71) -> -0.2332571261 | R59: =(R42/R10-R14)*(Ref_Sheet!$C$72/Ref_Sheet!$C$71) -> -0.2332571261 | S59: =(S42/S10-S14)*(Ref_Sheet!$C$72/Ref_Sheet!$C$71) -> -0.2332571261 | T59: =(T42/T10-T14)*(Ref_Sheet!$C$72/Ref_Sheet!$C$71) -> -0.2332571261 | U59: =(U42/U10-U14)*(Ref_Sheet!$C$72/Ref_Sheet!$C$71) -> -0.2332571261 | V59: =(V42/V10-V14)*(Ref_Sheet!$C$72/Ref_Sheet!$C$71) -> -0.2332571261 | W59: =(W42/W10-W14)*(Ref_Sheet!$C$72/Ref_Sheet!$C$71) -> -0.2332571261 | X59: =(X42/X10-X14)*(Ref_Sheet!$C$72/Ref_Sheet!$C$71) -> -0.2332571261
B60: Recovery of Lost Revenues | D60: Energy rate impact due to lost revenues (¢/kWh) | E60: =E61-E59 -> 0.03830101567 | F60: =F61-F59 -> 0.07671938029 | G60: =G61-G59 -> 0.1152564786 | H60: 0.1539137174 | I60: 0.1926925254 | J60: 0.2315943545 | K60: 0.2706206796 | L60: 0.3097729992 | M60: 0.3490528361 | N60: 0.3884617376 | O60: 0.3884617376 | P60: 0.3884617376 | Q60: 0.3884617376 | R60: 0.3884617376 | S60: 0.3884617376 | T60: 0.3884617376 | U60: 0.3884617376 | V60: 0.3884617376 | W60: 0.3884617376 | X60: 0.3884617376
B61: Net Effect | D61: Energy rate impact of both (¢/kWh) | E61: =E51/10 -> 0.01497530306 | F61: =F51/10 -> 0.03006795507 | G61: =G51/10 -> 0.04527934081 | H61: 0.06061086692 | I61: 0.07606396237 | J61: 0.09164007886 | K61: 0.1073406913 | L61: 0.1231672983 | M61: 0.1391214226 | N61: 0.1552046115 | O61: 0.1552046115 | P61: 0.1552046115 | Q61: 0.1552046115 | R61: 0.1552046115 | S61: 0.1552046115 | T61: 0.1552046115 | U61: 0.1552046115 | V61: 0.1552046115 | W61: 0.1552046115 | X61: 0.1552046115
E63: Averages
E64: 10 yrs | F64: 20 yrs
D65: Change in Energy Rate - variable portion ($/MWh) | E65: =AVERAGE(E49:N49) -> -0.5979846095 | F65: =AVERAGE(E49:X49) -> -0.8491588818
D66: Change in Energy Rate - fixed portion ($/MWh) | E66: =AVERAGE(E50:N50) -> 1.44145614 | F66: =AVERAGE(E50:X50) -> 2.046917705
D67: Change in Total Energy Rate ($/MWh) | E67: =AVERAGE(E51:N51) -> 0.8434715307 | F67: =AVERAGE(E51:X51) -> 1.197758823
D68: Customer ($/Month) | E68: =AVERAGE(E52:N52) -> 0 | F68: =AVERAGE(E52:X52) -> 0
D69: Minimum bill ($) | E69: =AVERAGE(E53:N53) -> 0 | F69: =AVERAGE(E53:X53) -> 0
D71: Change in Energy Rate - variable portion (%) | E71: =AVERAGE(E55:N55) -> -0.01823301245 | F71: =AVERAGE(E55:X55) -> -0.02589150995
D72: Change in Energy Rate - fixed portion (%) | E72: =AVERAGE(E56:N56) -> 0.02198214866 | F72: =AVERAGE(E56:X56) -> 0.03121541337
D73: Total Energy Rate (%)
D75: Energy Rate impact due to AC (¢/kWh) | E75: =AVERAGE(E59:N59) -> -0.1282914194 | F75: =AVERAGE(E59:X59) -> -0.1807742727
D76: Energy rate impact due to lost revenues (¢/kWh) | E76: =AVERAGE(E60:N60) -> 0.2126385724 | F76: =AVERAGE(E60:X60) -> 0.300550155
D77: Energy rate impact of both (¢/kWh) | E77: =AVERAGE(E61:N61) -> 0.08434715307 | F77: =AVERAGE(E61:X61) -> 0.1197758823

Sheet year_to_year_calcs
B1: Utah NEM Rate Impact Analysis
E2: 2015 | F2: 2016 | G2: 2017 | H2: 2018 | I2: 2019 | J2: 2020 | K2: 2021 | L2: 2022 | M2: 2023 | N2: 2024 | O2: 2025 | P2: 2026 | Q2: 2027 | R2: 2028 | S2: 2029 | T2: 2030 | U2: 2031 | V2: 2032 | W2: 2033 | X2: 2034
B3: Scenario calculations for no DGPV case | C3: No DG PV Case
C4: Rates
B5: Fuel and Purchased Power Charge | D5: Energy Rate - variable portion ($/MWh) | E5: =Rate_Impacts_With_v_Without!E12 -> 32.79680805 | F5: =Rate_Impacts_With_v_Without!F12 -> 32.79680805 | G5: =Rate_Impacts_With_v_Without!G12 -> 32.79680805 | H5: =Rate_Impacts_With_v_Without!H12 -> 32.79680805 | I5: =Rate_Impacts_With_v_Without!I12 -> 32.79680805 | J5: =Rate_Impacts_With_v_Without!J12 -> 32.79680805 | K5: =Rate_Impacts_With_v_Without!K12 -> 32.79680805 | L5: =Rate_Impacts_With_v_Without!L12 -> 32.79680805 | M5: =Rate_Impacts_With_v_Without!M12 -> 32.79680805 | N5: =Rate_Impacts_With_v_Without!N12 -> 32.79680805 | O5: =Rate_Impacts_With_v_Without!O12 -> 32.79680805 | P5: =Rate_Impacts_With_v_Without!P12 -> 32.79680805 | Q5: =Rate_Impacts_With_v_Without!Q12 -> 32.79680805 | R5: =Rate_Impacts_With_v_Without!R12 -> 32.79680805 | S5: =Rate_Impacts_With_v_Without!S12 -> 32.79680805 | T5: =Rate_Impacts_With_v_Without!T12 -> 32.79680805 | U5: =Rate_Impacts_With_v_Without!U12 -> 32.79680805 | V5: =Rate_Impacts_With_v_Without!V12 -> 32.79680805 | W5: =Rate_Impacts_With_v_Without!W12 -> 32.79680805 | X5: =Rate_Impacts_With_v_Without!X12 -> 32.79680805
B6: Energy rate times fixed portion | D6: Energy Rate - fixed portion ($/MWh) | E6: =Rate_Impacts_With_v_Without!E13 -> 65.57394195 | F6: =Rate_Impacts_With_v_Without!F13 -> 65.57394195 | G6: =Rate_Impacts_With_v_Without!G13 -> 65.57394195 | H6: =Rate_Impacts_With_v_Without!H13 -> 65.57394195 | I6: =Rate_Impacts_With_v_Without!I13 -> 65.57394195 | J6: =Rate_Impacts_With_v_Without!J13 -> 65.57394195 | K6: =Rate_Impacts_With_v_Without!K13 -> 65.57394195 | L6: =Rate_Impacts_With_v_Without!L13 -> 65.57394195 | M6: =Rate_Impacts_With_v_Without!M13 -> 65.57394195 | N6: =Rate_Impacts_With_v_Without!N13 -> 65.57394195 | O6: =Rate_Impacts_With_v_Without!O13 -> 65.57394195 | P6: =Rate_Impacts_With_v_Without!P13 -> 65.57394195 | Q6: =Rate_Impacts_With_v_Without!Q13 -> 65.57394195 | R6: =Rate_Impacts_With_v_Without!R13 -> 65.57394195 | S6: =Rate_Impacts_With_v_Without!S13 -> 65.57394195 | T6: =Rate_Impacts_With_v_Without!T13 -> 65.57394195 | U6: =Rate_Impacts_With_v_Without!U13 -> 65.57394195 | V6: =Rate_Impacts_With_v_Without!V13 -> 65.57394195 | W6: =Rate_Impacts_With_v_Without!W13 -> 65.57394195 | X6: =Rate_Impacts_With_v_Without!X13 -> 65.57394195
B7: Sum of above | D7: Total Energy Rate ($/MWh) | E7: =Rate_Impacts_With_v_Without!E14 -> 98.37075 | F7: =Rate_Impacts_With_v_Without!F14 -> 98.37075 | G7: =Rate_Impacts_With_v_Without!G14 -> 98.37075 | H7: =Rate_Impacts_With_v_Without!H14 -> 98.37075 | I7: =Rate_Impacts_With_v_Without!I14 -> 98.37075 | J7: =Rate_Impacts_With_v_Without!J14 -> 98.37075 | K7: =Rate_Impacts_With_v_Without!K14 -> 98.37075 | L7: =Rate_Impacts_With_v_Without!L14 -> 98.37075 | M7: =Rate_Impacts_With_v_Without!M14 -> 98.37075 | N7: =Rate_Impacts_With_v_Without!N14 -> 98.37075 | O7: =Rate_Impacts_With_v_Without!O14 -> 98.37075 | P7: =Rate_Impacts_With_v_Without!P14 -> 98.37075 | Q7: =Rate_Impacts_With_v_Without!Q14 -> 98.37075 | R7: =Rate_Impacts_With_v_Without!R14 -> 98.37075 | S7: =Rate_Impacts_With_v_Without!S14 -> 98.37075 | T7: =Rate_Impacts_With_v_Without!T14 -> 98.37075 | U7: =Rate_Impacts_With_v_Without!U14 -> 98.37075 | V7: =Rate_Impacts_With_v_Without!V14 -> 98.37075 | W7: =Rate_Impacts_With_v_Without!W14 -> 98.37075 | X7: =Rate_Impacts_With_v_Without!X14 -> 98.37075
B8: Customer charge | D8: Customer ($/Month) | E8: =Rate_Impacts_With_v_Without!E15 -> 6 | F8: =Rate_Impacts_With_v_Without!F15 -> 6 | G8: =Rate_Impacts_With_v_Without!G15 -> 6 | H8: =Rate_Impacts_With_v_Without!H15 -> 6 | I8: =Rate_Impacts_With_v_Without!I15 -> 6 | J8: =Rate_Impacts_With_v_Without!J15 -> 6 | K8: =Rate_Impacts_With_v_Without!K15 -> 6 | L8: =Rate_Impacts_With_v_Without!L15 -> 6 | M8: =Rate_Impacts_With_v_Without!M15 -> 6 | N8: =Rate_Impacts_With_v_Without!N15 -> 6 | O8: =Rate_Impacts_With_v_Without!O15 -> 6 | P8: =Rate_Impacts_With_v_Without!P15 -> 6 | Q8: =Rate_Impacts_With_v_Without!Q15 -> 6 | R8: =Rate_Impacts_With_v_Without!R15 -> 6 | S8: =Rate_Impacts_With_v_Without!S15 -> 6 | T8: =Rate_Impacts_With_v_Without!T15 -> 6 | U8: =Rate_Impacts_With_v_Without!U15 -> 6 | V8: =Rate_Impacts_With_v_Without!V15 -> 6 | W8: =Rate_Impacts_With_v_Without!W15 -> 6 | X8: =Rate_Impacts_With_v_Without!X15 -> 6
B9: Minimum bill | D9: Minimum bill ($) | E9: =Rate_Impacts_With_v_Without!E16 -> 8 | F9: =Rate_Impacts_With_v_Without!F16 -> 8 | G9: =Rate_Impacts_With_v_Without!G16 -> 8 | H9: =Rate_Impacts_With_v_Without!H16 -> 8 | I9: =Rate_Impacts_With_v_Without!I16 -> 8 | J9: =Rate_Impacts_With_v_Without!J16 -> 8 | K9: =Rate_Impacts_With_v_Without!K16 -> 8 | L9: =Rate_Impacts_With_v_Without!L16 -> 8 | M9: =Rate_Impacts_With_v_Without!M16 -> 8 | N9: =Rate_Impacts_With_v_Without!N16 -> 8 | O9: =Rate_Impacts_With_v_Without!O16 -> 8 | P9: =Rate_Impacts_With_v_Without!P16 -> 8 | Q9: =Rate_Impacts_With_v_Without!Q16 -> 8 | R9: =Rate_Impacts_With_v_Without!R16 -> 8 | S9: =Rate_Impacts_With_v_Without!S16 -> 8 | T9: =Rate_Impacts_With_v_Without!T16 -> 8 | U9: =Rate_Impacts_With_v_Without!U16 -> 8 | V9: =Rate_Impacts_With_v_Without!V16 -> 8 | W9: =Rate_Impacts_With_v_Without!W16 -> 8 | X9: =Rate_Impacts_With_v_Without!X16 -> 8
C11: With DG PV
C12: Rates
B13: New variable costs / net sales | D13: Energy Rate - variable portion ($/MWh) | E13: =Rate_Impacts_With_v_Without!E32 -> 32.69063967 | F13: =Rate_Impacts_With_v_Without!F32 -> 32.58363933 | G13: =Rate_Impacts_With_v_Without!G32 -> 32.47579723 | H13: =Rate_Impacts_With_v_Without!H32 -> 32.36710338 | I13: =Rate_Impacts_With_v_Without!I32 -> 32.25754766 | J13: =Rate_Impacts_With_v_Without!J32 -> 32.14711977 | K13: =Rate_Impacts_With_v_Without!K32 -> 32.03580926 | L13: =Rate_Impacts_With_v_Without!L32 -> 31.9236055 | M13: =Rate_Impacts_With_v_Without!M32 -> 31.81049771 | N13: =Rate_Impacts_With_v_Without!N32 -> 31.6964749 | O13: =Rate_Impacts_With_v_Without!O32 -> 31.6964749 | P13: =Rate_Impacts_With_v_Without!P32 -> 31.6964749 | Q13: =Rate_Impacts_With_v_Without!Q32 -> 31.6964749 | R13: =Rate_Impacts_With_v_Without!R32 -> 31.6964749 | S13: =Rate_Impacts_With_v_Without!S32 -> 31.6964749 | T13: =Rate_Impacts_With_v_Without!T32 -> 31.6964749 | U13: =Rate_Impacts_With_v_Without!U32 -> 31.6964749 | V13: =Rate_Impacts_With_v_Without!V32 -> 31.6964749 | W13: =Rate_Impacts_With_v_Without!W32 -> 31.6964749 | X13: =Rate_Impacts_With_v_Without!X32 -> 31.6964749
B14: New fixed costs / net sales | D14: Energy Rate - fixed portion ($/MWh) | E14: =Rate_Impacts_With_v_Without!E33 -> 65.82986336 | F14: =Rate_Impacts_With_v_Without!F33 -> 66.08779022 | G14: =Rate_Impacts_With_v_Without!G33 -> 66.34774618 | H14: =Rate_Impacts_With_v_Without!H33 -> 66.60975529 | I14: =Rate_Impacts_With_v_Without!I33 -> 66.87384197 | J14: =Rate_Impacts_With_v_Without!J33 -> 67.14003102 | K14: =Rate_Impacts_With_v_Without!K33 -> 67.40834765 | L14: =Rate_Impacts_With_v_Without!L33 -> 67.67881748 | M14: =Rate_Impacts_With_v_Without!M33 -> 67.95146652 | N14: =Rate_Impacts_With_v_Without!N33 -> 68.22632122 | O14: =Rate_Impacts_With_v_Without!O33 -> 68.22632122 | P14: =Rate_Impacts_With_v_Without!P33 -> 68.22632122 | Q14: =Rate_Impacts_With_v_Without!Q33 -> 68.22632122 | R14: =Rate_Impacts_With_v_Without!R33 -> 68.22632122 | S14: =Rate_Impacts_With_v_Without!S33 -> 68.22632122 | T14: =Rate_Impacts_With_v_Without!T33 -> 68.22632122 | U14: =Rate_Impacts_With_v_Without!U33 -> 68.22632122 | V14: =Rate_Impacts_With_v_Without!V33 -> 68.22632122 | W14: =Rate_Impacts_With_v_Without!W33 -> 68.22632122 | X14: =Rate_Impacts_With_v_Without!X33 -> 68.22632122
B15: Sum of above | D15: Total Energy Rate ($/MWh) | E15: =Rate_Impacts_With_v_Without!E34 -> 98.52050303 | F15: =Rate_Impacts_With_v_Without!F34 -> 98.67142955 | G15: =Rate_Impacts_With_v_Without!G34 -> 98.82354341 | H15: =Rate_Impacts_With_v_Without!H34 -> 98.97685867 | I15: =Rate_Impacts_With_v_Without!I34 -> 99.13138962 | J15: =Rate_Impacts_With_v_Without!J34 -> 99.28715079 | K15: =Rate_Impacts_With_v_Without!K34 -> 99.44415691 | L15: =Rate_Impacts_With_v_Without!L34 -> 99.60242298 | M15: =Rate_Impacts_With_v_Without!M34 -> 99.76196423 | N15: =Rate_Impacts_With_v_Without!N34 -> 99.92279611 | O15: =Rate_Impacts_With_v_Without!O34 -> 99.92279611 | P15: =Rate_Impacts_With_v_Without!P34 -> 99.92279611 | Q15: =Rate_Impacts_With_v_Without!Q34 -> 99.92279611 | R15: =Rate_Impacts_With_v_Without!R34 -> 99.92279611 | S15: =Rate_Impacts_With_v_Without!S34 -> 99.92279611 | T15: =Rate_Impacts_With_v_Without!T34 -> 99.92279611 | U15: =Rate_Impacts_With_v_Without!U34 -> 99.92279611 | V15: =Rate_Impacts_With_v_Without!V34 -> 99.92279611 | W15: =Rate_Impacts_With_v_Without!W34 -> 99.92279611 | X15: =Rate_Impacts_With_v_Without!X34 -> 99.92279611
B16: Same as No DG PV | D16: Customer ($/Month) | E16: =Rate_Impacts_With_v_Without!E35 -> 6 | F16: =Rate_Impacts_With_v_Without!F35 -> 6 | G16: =Rate_Impacts_With_v_Without!G35 -> 6 | H16: =Rate_Impacts_With_v_Without!H35 -> 6 | I16: =Rate_Impacts_With_v_Without!I35 -> 6 | J16: =Rate_Impacts_With_v_Without!J35 -> 6 | K16: =Rate_Impacts_With_v_Without!K35 -> 6 | L16: =Rate_Impacts_With_v_Without!L35 -> 6 | M16: =Rate_Impacts_With_v_Without!M35 -> 6 | N16: =Rate_Impacts_With_v_Without!N35 -> 6 | O16: =Rate_Impacts_With_v_Without!O35 -> 6 | P16: =Rate_Impacts_With_v_Without!P35 -> 6 | Q16: =Rate_Impacts_With_v_Without!Q35 -> 6 | R16: =Rate_Impacts_With_v_Without!R35 -> 6 | S16: =Rate_Impacts_With_v_Without!S35 -> 6 | T16: =Rate_Impacts_With_v_Without!T35 -> 6 | U16: =Rate_Impacts_With_v_Without!U35 -> 6 | V16: =Rate_Impacts_With_v_Without!V35 -> 6 | W16: =Rate_Impacts_With_v_Without!W35 -> 6 | X16: =Rate_Impacts_With_v_Without!X35 -> 6
B17: Same as No DG PV | D17: Minimum bill ($) | E17: =Rate_Impacts_With_v_Without!E36 -> 8 | F17: =Rate_Impacts_With_v_Without!F36 -> 8 | G17: =Rate_Impacts_With_v_Without!G36 -> 8 | H17: =Rate_Impacts_With_v_Without!H36 -> 8 | I17: =Rate_Impacts_With_v_Without!I36 -> 8 | J17: =Rate_Impacts_With_v_Without!J36 -> 8 | K17: =Rate_Impacts_With_v_Without!K36 -> 8 | L17: =Rate_Impacts_With_v_Without!L36 -> 8 | M17: =Rate_Impacts_With_v_Without!M36 -> 8 | N17: =Rate_Impacts_With_v_Without!N36 -> 8 | O17: =Rate_Impacts_With_v_Without!O36 -> 8 | P17: =Rate_Impacts_With_v_Without!P36 -> 8 | Q17: =Rate_Impacts_With_v_Without!Q36 -> 8 | R17: =Rate_Impacts_With_v_Without!R36 -> 8 | S17: =Rate_Impacts_With_v_Without!S36 -> 8 | T17: =Rate_Impacts_With_v_Without!T36 -> 8 | U17: =Rate_Impacts_With_v_Without!U36 -> 8 | V17: =Rate_Impacts_With_v_Without!V36 -> 8 | W17: =Rate_Impacts_With_v_Without!W36 -> 8 | X17: =Rate_Impacts_With_v_Without!X36 -> 8
C19: Year-to-Year Impacts
C20: Rates - Change from Previous Year
D21: Energy Rate - variable portion ($/MWh) | E21: ---- | F21: =F13-E13 -> -0.1070003348 | G21: =G13-F13 -> -0.1078421053 | H21: -0.1086938483 | I21: -0.1095557219 | J21: =J13-I13 -> -0.1104278876 | K21: -0.1113105097 | L21: -0.1122037562 | M21: -0.1131077982 | N21: -0.1140228104 | O21: 0 | P21: 0 | Q21: 0 | R21: 0 | S21: 0 | T21: 0 | U21: 0 | V21: 0 | W21: 0 | X21: 0
D22: Energy Rate - fixed portion ($/MWh) | E22: ---- | F22: =F14-E14 -> 0.2579268549 | G22: 0.2599559627 | H22: 0.2620091094 | I22: 0.2640866764 | J22: 0.2661890525 | K22: 0.2683166342 | L22: 0.2704698261 | M22: 0.2726490408 | N22: 0.2748546995 | O22: 0 | P22: 0 | Q22: 0 | R22: 0 | S22: 0 | T22: 0 | U22: 0 | V22: 0 | W22: 0 | X22: 0
D23: Total Energy Rate ($/MWh) | E23: ---- | F23: =F15-E15 -> 0.1509265201 | G23: =G15-F15 -> 0.1521138574 | H23: 0.1533152612 | I23: 0.1545309545 | J23: =J15-I15 -> 0.1557611649 | K23: 0.1570061245 | L23: 0.1582660699 | M23: 0.1595412426 | N23: 0.1608318891 | O23: 0 | P23: 0 | Q23: 0 | R23: 0 | S23: 0 | T23: 0 | U23: 0 | V23: 0 | W23: 0 | X23: 0
D24: Customer ($/Month) | E24: ---- | F24: =F16-E16 -> 0 | G24: =G16-F16 -> 0 | H24: 0 | I24: 0 | J24: 0 | K24: 0 | L24: 0 | M24: 0 | N24: 0 | O24: 0 | P24: 0 | Q24: 0 | R24: 0 | S24: 0 | T24: 0 | U24: 0 | V24: 0 | W24: 0 | X24: 0
D25: Minimum bill ($) | E25: ---- | F25: 0 | G25: 0 | H25: 0 | I25: 0 | J25: 0 | K25: 0 | L25: 0 | M25: 0 | N25: 0 | O25: 0 | P25: 0 | Q25: 0 | R25: 0 | S25: 0 | T25: 0 | U25: 0 | V25: 0 | W25: 0 | X25: 0
D27: Energy Rate - variable portion (%) | E27: ---- | F27: =F13/E13-1 -> -0.003273118418 | G27: =G13/F13-1 -> -0.003309701049 | H27: =H13/G13-1 -> -0.003346918553 | I27: -0.00338478611 | J27: -0.003423319366 | K27: -0.003462534452 | L27: -0.003502448004 | M27: -0.003543077181 | N27: -0.003584439685 | O27: 0 | P27: 0 | Q27: 0 | R27: 0 | S27: 0 | T27: 0 | U27: 0 | V27: 0 | W27: 0 | X27: 0
D28: Energy Rate - fixed portion (%) | E28: ---- | F28: =F14/E14-1 -> 0.003918082793 | G28: 0.00393349455 | H28: =H14/G14-1 -> 0.003949028031 | I28: 0.003964684682 | J28: 0.003980465974 | K28: 0.003996373402 | L28: 0.004012408485 | M28: 0.004028572764 | N28: 0.004044867809 | O28: 0 | P28: 0 | Q28: 0 | R28: 0 | S28: 0 | T28: 0 | U28: 0 | V28: 0 | W28: 0 | X28: 0
D29: Total Energy Rate (%) | E29: ---- | F29: 0.00153193006 | G29: 0.001541620083 | H29: =H15/G15-1 -> 0.001551404209 | I29: 0.001561283684 | J29: 0.001571259775 | K29: 0.00158133377 | L29: 0.00159150698 | M29: 0.001601780738 | N29: 0.0016121564 | O29: 0 | P29: 0 | Q29: 0 | R29: 0 | S29: 0 | T29: 0 | U29: 0 | V29: 0 | W29: 0 | X29: 0

Sheet Ref_Sheet
B2: Table 1: RMP Residential Tariff
B3: https://www.rockymountainpower.net/content/dam/rocky_mountain_power/doc/About_Us/Rates_and_Regulation/Utah/Approved_Tariffs/Rate_Schedules/Residential_Service.pdf
B5: Customer Charge
B6: Single Phase | C6: 6 | D6: per customer month
B7: Three phase | C7: 12 | D7: per customer month
B9: Energy Charge | C9: cents per kwh | D9: usage block
B10: Summer Block 1 | C10: 8.8498 | D10: 400 | E10: kWh | F10: 5 | G10: moths of the year
B11: Summer Block 2 | C11: 11.5429 | D11: 600 | E11: kWh | F11: 5 | G11: moths of the year
B12: Summer Block 3 | C12: 14.4508 | E12: all remaining kWh | F12: 5 | G12: moths of the year
B13: Winter Block 1 | C13: 8.8498 | D13: 400 | F13: 7 | G13: months of the year
B14: Winter Block 2 | C14: 10.3111 | D14: 600 | E14: all remaining kWh | F14: 7 | G14: months of the year
B16: Summer Average | C16: =AVERAGE(C10:C11) -> 10.19635 | D16: Synapse Calculation
B17: Winter Average | C17: =AVERAGE(C13:C14) -> 9.58045 | D17: Synapse Calculation
B18: Annual Weighted Average | C18: =((F10/12)*C16)+((F13/12)*C17) -> 9.837075 | D18: Synapse Calculation
B21: Minimum Bill
B22: Single Phase | C22: 8 | D22: per customer month
B23: Three phase | C23: 16 | D23: per customer month
B25: Table 2: Utah Solar Generation Profile
B26: Available online at: www.pvwatts.nrel.gov
B27: PVWatts: Monthly PV Performance Data
B28: Requested Location: | C28: Salt Lake City Utah
B29: Location: | C29: SALT LAKE CITY, UT
B30: Lat (deg N): | C30: 40.77
B31: Long (deg W): | C31: 111.97
B32: Elev (m): | C32: 1288
B33: DC System Size (kW): | C33: 5
B34: Module Type: | C34: Standard
B35: Array Type: | C35: Fixed (roof mount)
B36: Array Tilt (deg): | C36: 20
B37: Array Azimuth (deg): | C37: 180
B38: System Losses: | C38: 14
B39: Invert Efficiency: | C39: 96
B40: DC to AC Size Ratio: | C40: 1.1
B41: Average Cost of Electricity Purchased from Utility ($/kWh): | C41: 0.1
B42: Initial Cost | C42: 3.3
B43: Cost of Electricity Generated by System ($/kWh): | C43: 0.18
B45: Month | C45: AC System Output(kWh) | D45: Solar Radiation (kWh/m^2/day) | E45: Plane of Array Irradiance (W/m^2) | F45: DC array Output (kWh) | G45: Value ($)
B46: 1 | C46: 362.8890076 | D46: 2.75612473 | E46: 85.43986511 | F46: 381.1025391 | G46: 37.41
B47: 2 | C47: 455.8474121 | D47: 3.8986764 | E47: 109.162941 | F47: 477.0622253 | G47: 47
B48: 3 | C48: 608.9019165 | D48: 4.83562851 | E48: 149.90448 | F48: 636.7689209 | G48: 62.78
B49: 4 | C49: 678.0981445 | D49: 5.71737099 | E49: 171.5211334 | F49: 708.862915 | G49: 69.91
B50: 5 | C50: 836.8475952 | D50: 7.01864862 | E50: 217.5781097 | F50: 873.9233398 | G50: 86.28
B51: 6 | C51: 802.8485107 | D51: 7.2568922 | E51: 217.7067718 | F51: 838.4519653 | G51: 82.77
B52: 7 | C52: 840.4923706 | D52: 7.55199099 | E52: 234.1117249 | F52: 877.5559082 | G52: 86.65
B53: 8 | C53: 812.5726318 | D53: 7.21767378 | E53: 223.7478943 | F53: 848.5435181 | G53: 83.78
B54: 9 | C54: 698.034729 | D54: 6.16007996 | E54: 184.8023987 | F54: 728.774231 | G54: 71.97
B55: 10 | C55: 594.208374 | D55: 4.93516588 | E55: 152.9901428 | F55: 620.8773193 | G55: 61.26
B56: 11 | C56: 401.7036743 | D56: 3.31421304 | E56: 99.4263916 | F56: 421.0104675 | G56: 41.42
B57: 12 | C57: 298.8479309 | D57: 2.268929 | E57: 70.33679962 | F57: 314.5162964 | G57: 30.81
B58: Total | C58: 7391.292297 | D58: 62.9313941 | E58: 1916.728653 | F58: 7727.449646 | G58: 762.04
B60: Table 3: Avoided Costs in Utah
B61: Value of Solar in Utah Clean Power Research 2014.
B62: Available online: http://www.psc.utah.gov/utilities/electric/13docs/13035184/255147Exhibit%20A%20to%20Wright%20Testimony%20-%20UCE%202_1%20DT%20-%20Value%20of%20Solar%20in%20Utah%205-22-2014.pdf
B63: Fuel Value | C63: 0.043 | D63: ($/kWh) | F63: =C63*Ref_Sheet!$C$71 -> 43 | G63: $/MWh
B64: Plant O&M Value | C64: 0.013 | D64: ($/kWh) | F64: =C64*Ref_Sheet!$C$71 -> 13 | G64: $/MWh
B65: Generation Capacity Value | C65: 0.014 | D65: ($/kWh) | F65: =C65*Ref_Sheet!$C$71 -> 14 | G65: $/MWh
B66: Avoided T&D Capacity Cost | C66: 0.011 | D66: ($/kWh) | F66: =C66*Ref_Sheet!$C$71 -> 11 | G66: $/MWh
B67: Avoided Environmental Cost | C67: 0.009 | D67: ($/kWh) | F67: =C67*Ref_Sheet!$C$71 -> 9 | G67: $/MWh
B68: Fuel Price Guarantee Value | C68: 0.026 | D68: ($/kWh) | F68: =C68*Ref_Sheet!$C$71 -> 26 | G68: $/MWh
B70: Table 4: Conversion factors
B71: kWh per MWh | C71: 1000
B72: cents per dollar | C72: 100
